[Event "Reykjavik Open 2025"]
[Site "Reykjavik, Iceland"]
[Date "2025.04.10"]
[Round "2.16"]
[White "Xu, Yuanyuan"]
[Black "Zierk, Steven"]
[Result "1/2-1/2"]
[WhiteElo "2288"]
[WhiteTitle "WGM"]
[WhiteFideId "8601089"]
[BlackElo "2501"]
[BlackTitle "GM"]
[BlackFideId "2034255"]
[TimeControl "90+30 +30 after 40 moves"]
[Variant "Standard"]
[ECO "E46"]
[Opening "Nimzo-Indian Defense: Reshevsky Variation"]
[StudyName "Round 2"]
1. d4 { [%clk 1:27:58] } 1... Nf6 { [%clk 1:30:52] } 2. c4 { [%clk 1:27:51] } 2... e6 { [%clk 1:31:14] } 3. Nc3 { [%clk 1:28:13] } 3... Bb4 { [%clk 1:31:36] } 4. e3 { [%clk 1:19:59] } 4... O-O { [%clk 1:31:56] } 5. Ne2 { [%clk 1:19:25] } 5... c6 { [%clk 1:32:17] } 6. a3 { [%clk 1:18:12] } 6... Ba5 { [%clk 1:32:40] } 7. b4 { [%clk 1:17:08] } 7... Bc7 { [%clk 1:32:59] } 8. e4 { [%clk 1:16:37] } 8... d5 { [%clk 1:32:33] } 9. e5 { [%clk 1:15:48] } 9... Nfd7 { [%clk 1:32:52] } 10. Nf4 { [%clk 1:06:49] } 10... a5 { [%clk 1:30:29] } 11. Rb1 { [%clk 1:00:14] } 11... axb4 { [%clk 1:29:09] } 12. axb4 { [%clk 1:00:41] } 12... c5 { [%clk 1:22:35] } 13. bxc5 { [%clk 0:54:30] } 13... Ba5 { [%clk 1:22:46] } 14. Bd2 { [%clk 0:53:09] } 14... dxc4 { [%clk 1:22:19] } 15. Nb5 { [%clk 0:41:56] } 15... Nc6 { [%clk 1:18:57] } 16. Bxa5 { [%clk 0:33:01] } 16... Qxa5+ { [%clk 1:18:08] } 17. Qd2 { [%clk 0:33:21] } 17... Rd8 { [%clk 1:06:30] } 18. Qxa5 { [%clk 0:32:43] } 18... Rxa5 { [%clk 1:06:43] } 19. Bxc4 { [%clk 0:28:43] } 19... Ra4 { [%clk 0:49:28] } 20. Bb3 { [%clk 0:21:06] } 20... Ra5 { [%clk 0:36:00] } 21. Bc2 { [%clk 0:17:57] } 21... Rxb5 { [%clk 0:30:16] } 22. Rxb5 { [%clk 0:18:17] } 22... Nxd4 { [%clk 0:30:34] } 23. Rb2 { [%clk 0:18:16] } 23... Nxe5 { [%clk 0:30:30] } 24. O-O { [%clk 0:17:29] } 24... Nc4 { [%clk 0:28:06] } 25. Ra2 { [%clk 0:15:26] } 25... e5 { [%clk 0:27:35] } 26. Bd3 { [%clk 0:14:17] } 26... b5 { [%clk 0:23:43] } 27. cxb6 { [%clk 0:12:08] } 27... Nxb6 { [%clk 0:24:02] } 28. Rb1 { [%clk 0:10:46] } 28... exf4 { [%clk 0:16:28] } 29. Rxb6 { [%clk 0:11:10] } 29... f3 { [%clk 0:03:40] } 30. Rb8 { [%clk 0:10:55] } 30... Ne2+ { [%clk 0:03:36] } 1/2-1/2

[Event "Reykjavik Open 2025"]
[Site "Reykjavik, Iceland"]
[Date "2025.04.10"]
[Round "2.17"]
[White "Le Goff, Ronan"]
[Black "Draskovic, Luka"]
[Result "0-1"]
[WhiteElo "2282"]
[WhiteTitle "FM"]
[WhiteFideId "612073"]
[BlackElo "2488"]
[BlackTitle "GM"]
[BlackFideId "944335"]
[TimeControl "90+30 +30 after 40 moves"]
[Variant "Standard"]
[ECO "D02"]
[Opening "Queen's Pawn Game: Symmetrical Variation, Pseudo-Catalan"]
[StudyName "Round 2"]
1. Nf3 { [%clk 1:30:55] } 1... d5 { [%clk 1:30:07] } 2. d4 { [%clk 1:30:47] } 2... Nf6 { [%clk 1:30:13] } 3. g3 { [%clk 1:31:05] } 3... Bf5 { [%clk 1:30:07] } 4. c4 { [%clk 1:30:56] } 4... e6 { [%clk 1:30:02] } 5. Nc3 { [%clk 1:30:57] } 5... h6 { [%clk 1:30:01] } 6. Bg2 { [%clk 1:31:07] } 6... c6 { [%clk 1:28:03] } 7. Qb3 { [%clk 1:31:22] } 7... Qb6 { [%clk 1:13:33] } 8. c5 { [%clk 1:30:58] } 8... Qc7 { [%clk 1:06:03] } 9. Bf4 { [%clk 1:29:10] } 9... Qc8 { [%clk 1:06:20] } 10. O-O { [%clk 1:28:54] } 10... Nbd7 { [%clk 1:05:29] } 11. h3 { [%clk 1:25:05] } 11... Be7 { [%clk 0:59:38] } 12. g4 { [%clk 1:24:24] } 12... Bh7 { [%clk 0:59:00] } 13. Qd1 { [%clk 1:11:14] } 13... h5 { [%clk 0:45:58] } 14. g5 { [%clk 1:07:32] } 14... Ne4 { [%clk 0:46:21] } 15. Rc1 { [%clk 1:05:38] } 15... O-O { [%clk 0:38:00] } 16. Nd2 { [%clk 0:56:27] } 16... e5 { [%clk 0:27:27] } 17. dxe5 { [%clk 0:48:44] } 17... Nxc3 { [%clk 0:22:42] } 18. Rxc3 { [%clk 0:48:39] } 18... Nxc5 { [%clk 0:23:05] } 19. e4 { [%clk 0:36:50] } 19... Nxe4 { [%clk 0:16:49] } 20. Nxe4 { [%clk 0:36:00] } 20... dxe4 { [%clk 0:16:24] } 21. Qxh5 { [%clk 0:35:56] } 21... Qe6 { [%clk 0:14:46] } 22. Rb3 { [%clk 0:33:11] } 22... b5 { [%clk 0:12:06] } 23. Re1 { [%clk 0:33:06] } 23... Rad8 { [%clk 0:10:42] } 24. Bg3 { [%clk 0:25:17] } 24... Rd4 { [%clk 0:09:44] } 25. Rbe3 { [%clk 0:23:32] } 25... Bg6 { [%clk 0:09:29] } 26. Qg4 { [%clk 0:20:29] } 26... Qxg4 { [%clk 0:09:08] } 27. hxg4 { [%clk 0:20:51] } 27... Bxg5 { [%clk 0:08:49] } 28. R3e2 { [%clk 0:20:48] } 28... Bd2 { [%clk 0:07:17] } 29. Rd1 { [%clk 0:19:47] } 29... Rfd8 { [%clk 0:07:41] } 30. Kh2 { [%clk 0:17:52] } 30... c5 { [%clk 0:07:20] } 31. f3 { [%clk 0:15:53] } 31... e3 { [%clk 0:06:41] } 32. Bh4 { [%clk 0:15:37] } 32... Bd3 { [%clk 0:03:41] } 33. Rexd2 { [%clk 0:14:26] } 33... exd2 { [%clk 0:04:02] } 34. Rxd2 { [%clk 0:14:46] } 34... Bg6 { [%clk 0:03:57] } 35. Re2 { [%clk 0:14:57] } 35... Rd2 { [%clk 0:04:09] } 36. Re1 { [%clk 0:15:03] } 36... Rd1 { [%clk 0:02:38] } 37. Rxd1 { [%clk 0:15:08] } 37... Rxd1 { [%clk 0:03:02] } 38. f4 { [%clk 0:15:28] } 38... Bb1 { [%clk 0:02:49] } 39. a3 { [%clk 0:15:22] } 39... Rd2 { [%clk 0:03:10] } 40. Kg3 { [%clk 0:15:28] } 40... Rxb2 { [%clk 0:03:30] } 41. f5 { [%clk 0:15:18] } 41... Ba2 { [%clk 0:03:29] } 0-1

[Event "Reykjavik Open 2025"]
[Site "Reykjavik, Iceland"]
[Date "2025.04.10"]
[Round "2.18"]
[White "Kilic, Eray"]
[Black "Priansh Das"]
[Result "1-0"]
[WhiteElo "2473"]
[WhiteTitle "IM"]
[WhiteFideId "44517173"]
[BlackElo "2262"]
[BlackTitle "FM"]
[BlackFideId "45029946"]
[TimeControl "90+30 +30 after 40 moves"]
[Variant "Standard"]
[ECO "C02"]
[Opening "French Defense: Advance Variation, Euwe Variation"]
[StudyName "Round 2"]
1. e4 { [%clk 1:30:58] } 1... e6 { [%clk 1:30:51] } 2. d4 { [%clk 1:31:19] } 2... d5 { [%clk 1:29:36] } 3. e5 { [%clk 1:31:43] } 3... c5 { [%clk 1:30:03] } 4. c3 { [%clk 1:32:09] } 4... Nc6 { [%clk 1:30:29] } 5. Nf3 { [%clk 1:32:35] } 5... Bd7 { [%clk 1:30:33] } 6. Be2 { [%clk 1:33:00] } 6... Nge7 { [%clk 1:30:41] } 7. O-O { [%clk 1:31:36] } 7... cxd4 { [%clk 1:30:04] } 8. cxd4 { [%clk 1:32:02] } 8... Nf5 { [%clk 1:30:16] } 9. Nc3 { [%clk 1:32:23] } 9... Rc8 { [%clk 1:28:48] } 10. a3 { [%clk 1:26:18] } 10... a6 { [%clk 1:28:21] } 11. g4 { [%clk 1:24:26] } 11... Nfe7 { [%clk 1:17:52] } 12. Be3 { [%clk 1:24:31] } 12... h5 { [%clk 1:12:41] } 13. h3 { [%clk 1:23:59] } 13... hxg4 { [%clk 1:08:00] } 14. hxg4 { [%clk 1:24:24] } 14... f5 { [%clk 1:07:43] } 15. Bd3 { [%clk 1:19:55] } 15... Ng6 { [%clk 0:59:19] } 16. gxf5 { [%clk 1:15:27] } 16... exf5 { [%clk 0:57:15] } 17. Re1 { [%clk 1:04:53] } 17... Be6 { [%clk 0:55:02] } 18. Ng5 { [%clk 1:05:06] } 18... Qd7 { [%clk 0:40:45] } 19. Na4 { [%clk 0:59:32] } 19... Rd8 { [%clk 0:39:38] } 20. Qf3 { [%clk 0:56:59] } 20... Nh4 { [%clk 0:32:19] } 21. Qg3 { [%clk 0:57:16] } 21... Na5 { [%clk 0:26:13] } 22. Rac1 { [%clk 0:50:02] } 22... Nc4 { [%clk 0:23:08] } 23. b3 { [%clk 0:49:31] } 23... Nxe3 { [%clk 0:23:22] } 24. fxe3 { [%clk 0:49:50] } 24... Qe7 { [%clk 0:12:48] } 25. Kf2 { [%clk 0:48:21] } 25... Rh5 { [%clk 0:10:26] } 26. Nxe6 { [%clk 0:46:07] } 26... Qxe6 { [%clk 0:10:44] } 27. Rh1 { [%clk 0:46:32] } 27... Be7 { [%clk 0:08:29] } 28. Rc7 { [%clk 0:42:59] } 28... g5 { [%clk 0:07:17] } 29. Be2 { [%clk 0:41:05] } 29... Rh8 { [%clk 0:06:25] } 30. Nc5 { [%clk 0:40:16] } 30... Bxc5 { [%clk 0:06:17] } 31. Qxg5 { [%clk 0:40:08] } 31... Be7 { [%clk 0:06:33] } 32. Qg7 { [%clk 0:40:32] } 32... Rg8 { [%clk 0:03:35] } 33. Bh5+ { [%clk 0:38:38] } 1-0

[Event "Reykjavik Open 2025"]
[Site "Reykjavik, Iceland"]
[Date "2025.04.10"]
[Round "2.32"]
[White "Kavutskiy, Kostya"]
[Black "Lu, Shanglei"]
[Result "0-1"]
[WhiteElo "2351"]
[WhiteTitle "IM"]
[WhiteFideId "2026384"]
[BlackElo "2618"]
[BlackTitle "GM"]
[BlackFideId "8603332"]
[TimeControl "90+30 +30 after 40 moves"]
[Variant "Standard"]
[ECO "B90"]
[Opening "Sicilian Defense: Najdorf Variation, Lipnitsky Attack"]
[StudyName "Round 2"]
1. e4 { [%clk 1:30:32] } 1... c5 { [%clk 1:29:41] } 2. Nf3 { [%clk 1:30:53] } 2... d6 { [%clk 1:27:46] } 3. d4 { [%clk 1:31:05] } 3... cxd4 { [%clk 1:28:09] } 4. Nxd4 { [%clk 1:31:18] } 4... Nf6 { [%clk 1:28:34] } 5. Nc3 { [%clk 1:31:39] } 5... a6 { [%clk 1:28:29] } 6. Bc4 { [%clk 1:29:39] } 6... e6 { [%clk 1:27:48] } 7. Be3 { [%clk 1:29:40] } 7... Nc6 { [%clk 1:10:59] } 8. Bb3 { [%clk 1:28:04] } 8... Na5 { [%clk 1:07:34] } 9. f4 { [%clk 1:25:31] } 9... Qc7 { [%clk 1:03:40] } 10. Qf3 { [%clk 1:05:38] } 10... b5 { [%clk 1:01:38] } 11. a3 { [%clk 1:04:38] } 11... Bb7 { [%clk 0:59:01] } 12. g4 { [%clk 1:03:43] } 12... d5 { [%clk 0:46:52] } 13. e5 { [%clk 1:00:13] } 13... Nd7 { [%clk 0:47:16] } 14. Rd1 { [%clk 0:55:56] } 14... Bxa3 { [%clk 0:43:53] } 15. Nxd5 { [%clk 0:29:43] } 15... Bb4+ { [%clk 0:40:03] } 16. c3 { [%clk 0:26:15] } 16... exd5 { [%clk 0:39:35] } 17. Bxd5 { [%clk 0:22:06] } 17... Bxd5 { [%clk 0:39:40] } 18. Qxd5 { [%clk 0:22:26] } 18... Nb6 { [%clk 0:40:03] } 19. Nxb5 { [%clk 0:16:00] } 19... Nxd5 { [%clk 0:38:01] } 20. Nxc7+ { [%clk 0:16:23] } 20... Nxc7 { [%clk 0:38:27] } 21. cxb4 { [%clk 0:16:42] } 21... Nc4 { [%clk 0:37:33] } 22. Bc5 { [%clk 0:13:50] } 22... Nxb2 { [%clk 0:36:51] } 23. Rd2 { [%clk 0:13:54] } 23... Nc4 { [%clk 0:36:18] } 24. Rc2 { [%clk 0:13:38] } 24... Na3 { [%clk 0:36:34] } 25. Ra2 { [%clk 0:14:00] } 25... Nab5 { [%clk 0:36:40] } 26. O-O { [%clk 0:14:00] } 26... O-O-O { [%clk 0:35:18] } 27. f5 { [%clk 0:14:04] } 27... Rhe8 { [%clk 0:34:37] } 28. e6 { [%clk 0:13:58] } 28... fxe6 { [%clk 0:35:01] } 29. f6 { [%clk 0:14:10] } 29... gxf6 { [%clk 0:35:26] } 30. Rxf6 { [%clk 0:14:31] } 30... Nc3 { [%clk 0:34:37] } 31. Rc2 { [%clk 0:14:49] } 31... Ne4 { [%clk 0:34:54] } 32. Rf7 { [%clk 0:14:02] } 32... Nxc5 { [%clk 0:33:03] } 33. Rxc5 { [%clk 0:14:20] } 33... Rd7 { [%clk 0:33:30] } 0-1

[Event "Reykjavik Open 2025"]
[Site "Reykjavik, Iceland"]
[Date "2025.04.10"]
[Round "2.42"]
[White "Wartiovaara, Oliver"]
[Black "Arun, Nitish"]
[Result "0-1"]
[WhiteElo "2359"]
[WhiteTitle "FM"]
[WhiteFideId "513024"]
[BlackElo "2004"]
[BlackFideId "2524201"]
[TimeControl "90+30 +30 after 40 moves"]
[Variant "Standard"]
[ECO "B12"]
[Opening "Caro-Kann Defense: Advance Variation, Tal Variation"]
[StudyName "Round 2"]
1. e4 { [%clk 1:30:56] } 1... c6 { [%clk 1:30:50] } 2. d4 { [%clk 1:31:21] } 2... d5 { [%clk 1:31:11] } 3. e5 { [%clk 1:31:46] } 3... Bf5 { [%clk 1:31:32] } 4. h4 { [%clk 1:32:09] } 4... h6 { [%clk 1:31:40] } 5. g4 { [%clk 1:32:34] } 5... Bd7 { [%clk 1:32:02] } 6. h5 { [%clk 1:31:54] } 6... c5 { [%clk 1:29:09] } 7. Nc3 { [%clk 1:32:13] } 7... e6 { [%clk 1:29:12] } 8. Be3 { [%clk 1:31:26] } 8... Qc7 { [%clk 1:20:53] } 9. Nf3 { [%clk 1:29:23] } 9... c4 { [%clk 1:15:05] } 10. Nh4 { [%clk 1:25:23] } 10... Bb4 { [%clk 1:09:20] } 11. f4 { [%clk 1:24:44] } 11... Nc6 { [%clk 1:02:57] } 12. f5 { [%clk 1:23:21] } 12... O-O-O { [%clk 1:00:14] } 13. fxe6 { [%clk 1:22:43] } 13... Bxe6 { [%clk 1:00:33] } 14. Bh3 { [%clk 1:21:29] } 14... Qd7 { [%clk 0:52:18] } 15. Nf5 { [%clk 1:19:11] } 15... f6 { [%clk 0:42:12] } 16. exf6 { [%clk 1:13:26] } 16... Nxf6 { [%clk 0:40:21] } 17. O-O { [%clk 1:13:05] } 17... Bxc3 { [%clk 0:32:33] } 18. bxc3 { [%clk 1:13:18] } 18... Kb8 { [%clk 0:31:10] } 19. Qf3 { [%clk 1:05:03] } 19... Ka8 { [%clk 0:20:36] } 20. Rae1 { [%clk 1:00:53] } 20... Ne4 { [%clk 0:20:39] } 21. Bf4 { [%clk 0:54:46] } 21... Rhf8 { [%clk 0:19:28] } 22. Re2 { [%clk 0:40:56] } 22... Rde8 { [%clk 0:16:29] } 23. Rg2 { [%clk 0:39:32] } 23... Rf7 { [%clk 0:15:28] } 24. Bc1 { [%clk 0:34:08] } 24... Ne7 { [%clk 0:14:20] } 25. Kh2 { [%clk 0:26:43] } 25... Ng8 { [%clk 0:10:30] } 26. Bf4 { [%clk 0:25:56] } 26... Ngf6 { [%clk 0:10:39] } 27. Be5 { [%clk 0:20:51] } 27... Ng5 { [%clk 0:09:26] } 28. Qg3 { [%clk 0:20:09] } 28... Nfe4 { [%clk 0:09:47] } 29. Qe3 { [%clk 0:19:07] } 29... Nxh3 { [%clk 0:09:40] } 30. Qxh3 { [%clk 0:19:06] } 30... Ng5 { [%clk 0:10:06] } 31. Qg3 { [%clk 0:15:46] } 31... Ref8 { [%clk 0:09:47] } 32. Qf4 { [%clk 0:11:56] } 32... Bxf5 { [%clk 0:09:43] } 33. gxf5 { [%clk 0:12:23] } 33... Rxf5 { [%clk 0:09:57] } 34. Qg4 { [%clk 0:12:50] } 34... Qe6 { [%clk 0:07:38] } 35. Rxf5 { [%clk 0:12:07] } 35... Rxf5 { [%clk 0:07:51] } 36. Bf4 { [%clk 0:10:18] } 36... a6 { [%clk 0:05:42] } 37. Bxg5 { [%clk 0:09:28] } 37... hxg5 { [%clk 0:06:03] } 38. Qe2 { [%clk 0:07:37] } 38... Qd6+ { [%clk 0:05:46] } 39. Kg1 { [%clk 0:07:32] } 39... Qd7 { [%clk 0:05:05] } 40. Rf2 { [%clk 0:04:02] } 40... Rf4 { [%clk 0:04:24] } 41. Rxf4 { [%clk 0:01:00] } 41... gxf4 { [%clk 0:04:46] } 42. Kf2 { [%clk 0:00:41] } 42... Qh3 { [%clk 0:01:44] } 43. Qe8+ { [%clk 0:23:05] } 43... Ka7 { [%clk 0:32:04] } 44. Qe7 { [%clk 0:20:21] } 44... Qg3+ { [%clk 0:23:39] } 45. Ke2 { [%clk 0:19:23] } 45... f3+ { [%clk 0:23:42] } 46. Kd1 { [%clk 0:17:31] } 46... Qf4 { [%clk 0:23:33] } 47. Qe5 { [%clk 0:13:22] } 47... Qg4 { [%clk 0:22:16] } 0-1

[Event "Reykjavik Open 2025"]
[Site "Reykjavik, Iceland"]
[Date "2025.04.10"]
[Round "3.1"]
[White "Maghsoodloo, Parham"]
[Black "Licznerski, Lukasz"]
[Result "1-0"]
[ECO "D17"]
[WhiteElo "2684"]
[BlackElo "2436"]
[PlyCount "83"]
[EventDate "2025.??.??"]
[TimeControl "90+30"]
[WhiteClock "0:28:22"]
[BlackClock "0:05:44"]

1. c4 {[%emt 0:00:00]} c6 {[%emt 0:00:00]} 2. d4 {[%emt 0:00:00]} d5 {[%emt 0:
00:00]} 3. Nf3 {[%emt 0:00:00]} Nf6 {[%emt 0:00:00]} 4. Nc3 {[%emt 0:00:00]}
dxc4 {[%emt 0:00:00]} 5. a4 {[%emt 0:00:00]} Bf5 {[%emt 0:00:00]} 6. Ne5 {
[%emt 0:00:00]} e6 {[%emt 0:00:00]} 7. f3 {[%emt 0:00:00]} Bb4 {[%emt 0:00:00]}
8. e4 {[%emt 0:00:00]} Bxe4 {[%emt 0:00:00]} 9. fxe4 {[%emt 0:00:00]} Nxe4 {
[%emt 0:00:00]} 10. Bd2 {[%emt 0:00:00]} Qxd4 {[%emt 0:00:00]} 11. Nxe4 {
[%emt 0:00:00]} Qxe4+ {[%emt 0:00:00]} 12. Qe2 {[%emt 0:00:00]} Bxd2+ {[%emt 0:
00:00]} 13. Kxd2 {[%emt 0:00:00]} Qd5+ {[%emt 0:00:00]} 14. Kc3 {[%emt 0:00:00]
} Na6 {[%emt 0:00:00]} 15. Qe3 {[%emt 0:00:00]} Qa5+ {[%emt 0:00:00]} 16. Kc2 {
[%emt 0:00:00]} Nb4+ {[%emt 0:00:00]} 17. Kc1 {[%emt 0:00:00]} Qd5 {[%emt 0:00:
00]} 18. Be2 {[%emt 0:00:00]} c3 {[%emt 0:00:00]} 19. Ra3 {[%emt 0:04:47]} O-O
{[%emt 0:00:00]} 20. bxc3 {[%emt 0:02:12]} Qxg2 {[%emt 0:00:00]} 21. Re1 {
[%emt 0:02:07]} Nd5 {[%emt 0:00:00]} 22. Qg3 {[%emt 0:00:01]} Qxg3 {[%emt 0:00:
00]} 23. hxg3 {[%emt 0:00:02]} Rad8 {[%emt 0:00:00]} 24. Rb3 {[%emt 0:02:46]}
f6 {[%emt 0:00:00]} 25. Nd3 {[%emt 0:00:10]} b6 {[%emt 0:00:00]} 26. c4 {
[%emt 0:00:01]} Nc7 {[%emt 0:00:00]} 27. Nb4 {[%emt 0:01:52]} Rd6 {[%emt 0:00:
00]} 28. Bf3 {[%emt 0:00:02]} Rf7 {[%emt 0:00:00]} 29. a5 {[%emt 0:00:56]} bxa5
{[%emt 0:04:00]} 30. Nxc6 {[%emt 0:00:01]} Na6 {[%emt 0:00:09]} 31. Rd1 {
[%emt 0:01:01]} Rxd1+ {[%emt 0:00:18]} 32. Kxd1 {[%emt 0:00:05]} Rd7+ {[%emt 0:
05:35]} 33. Kc2 {[%emt 0:01:12]} Rc7 {[%emt 0:00:44]} 34. Kc3 {[%emt 0:00:33]}
Nc5 {[%emt 0:01:29]} 35. Rb5 {[%emt 0:00:30]} Na4+ {[%emt 0:00:50]} 36. Kd4 {
[%emt 0:00:41]} Rd7+ {[%emt 0:00:11]} 37. Ke3 {[%emt 0:00:05]} a6 {[%emt 0:01:
17]} 38. Rb8+ {[%emt 0:00:52]} Kf7 {[%emt 0:00:03]} 39. Nxa5 {[%emt 0:00:24]}
Rc7 {[%emt 0:01:15]} 40. Bc6 {[%emt 0:00:38]} Nc5 {[%emt 0:00:09]} 41. Kd4 {
[%emt 0:00:31]} Nd7 {[%emt 0:00:16]} 42. Ke4 {[%emt 0:00:00]} 1-0

[Event "Reykjavik Open 2025"]
[Site "Reykjavik, Iceland"]
[Date "2025.04.10"]
[Round "3.2"]
[White "Prraneeth Vuppala"]
[Black "Ivic, Velimir"]
[Result "0-1"]
[ECO "B33"]
[WhiteElo "2433"]
[BlackElo "2623"]
[PlyCount "182"]
[EventDate "2025.??.??"]
[TimeControl "90+30"]
[WhiteClock "0:02:00"]
[BlackClock "0:02:06"]

1. e4 {[%emt 0:00:00]} c5 {[%emt 0:00:00]} 2. Nf3 {[%emt 0:00:00]} Nc6 {
[%emt 0:00:00]} 3. d4 {[%emt 0:00:00]} cxd4 {[%emt 0:00:00]} 4. Nxd4 {[%emt 0:
00:00]} Nf6 {[%emt 0:00:00]} 5. Nc3 {[%emt 0:00:00]} e5 {[%emt 0:00:00]} 6.
Ndb5 {[%emt 0:00:00]} d6 {[%emt 0:00:00]} 7. Nd5 {[%emt 0:00:00]} Nxd5 {
[%emt 0:00:00]} 8. exd5 {[%emt 0:00:00]} Nb8 {[%emt 0:00:00]} 9. a4 {[%emt 0:
00:00]} Be7 {[%emt 0:00:00]} 10. Bd2 {[%emt 0:00:00]} O-O {[%emt 0:00:00]} 11.
a5 {[%emt 0:00:00]} Bf5 {[%emt 0:00:00]} 12. Be3 {[%emt 0:00:00]} Na6 {[%emt 0:
00:00]} 13. c3 {[%emt 0:00:00]} Qb8 {[%emt 0:00:00]} 14. Be2 {[%emt 0:00:00]}
Nc7 {[%emt 0:00:00]} 15. O-O {[%emt 0:00:00]} Nxb5 {[%emt 0:00:00]} 16. Bxb5 {
[%emt 0:00:00]} Qc7 {[%emt 0:00:00]} 17. a6 {[%emt 0:00:00]} b6 {[%emt 0:00:00]
} 18. Ra4 {[%emt 0:00:00]} Rac8 {[%emt 0:00:00]} 19. f4 {[%emt 0:00:00]} exf4 {
[%emt 0:00:00]} 20. Raxf4 {[%emt 0:00:00]} Bg5 {[%emt 0:00:00]} 21. Rxf5 {
[%emt 0:00:00]} Bxe3+ {[%emt 0:00:00]} 22. Kh1 {[%emt 0:00:00]} g6 {[%emt 0:00:
00]} 23. R5f3 {[%emt 0:00:00]} Bh6 {[%emt 0:00:00]} 24. Qd4 {[%emt 0:00:00]}
Bg7 {[%emt 0:00:00]} 25. Qh4 {[%emt 0:00:00]} Be5 {[%emt 0:00:00]} 26. g4 {
[%emt 0:00:00]} f6 {[%emt 0:00:00]} 27. Qf2 {[%emt 0:00:00]} Rf7 {[%emt 0:00:
00]} 28. Qe2 {[%emt 0:00:00]} Rcf8 {[%emt 0:00:00]} 29. Qc4 {[%emt 0:00:00]}
Qd8 {[%emt 0:00:00]} 30. Qe4 {[%emt 0:01:15]} Kh8 {[%emt 0:00:00]} 31. Qe2 {
[%emt 0:01:55]} Qc8 {[%emt 0:00:00]} 32. Qc4 {[%emt 0:04:15]} Rc7 {[%emt 0:00:
00]} 33. Qe4 {[%emt 0:00:07]} Rc5 {[%emt 0:00:00]} 34. Bd3 {[%emt 0:05:35]} Qd7
{[%emt 0:00:00]} 35. Rh3 {[%emt 0:03:44]} Kg8 {[%emt 0:00:00]} 36. Qg2 {
[%emt 0:00:57]} b5 {[%emt 0:00:00]} 37. Rff3 {[%emt 0:01:12]} Qg7 {[%emt 0:04:
07]} 38. Rh4 {[%emt 0:00:35]} b4 {[%emt 0:02:02]} 39. Rfh3 {[%emt 0:00:29]}
bxc3 {[%emt 0:03:39]} 40. Rxh7 {[%emt 0:00:04]} Qxh7 {[%emt 0:00:20]} 41. Rxh7
{[%emt 0:00:09]} Kxh7 {[%emt 0:00:25]} 42. bxc3 {[%emt 0:00:00]} Rxc3 {[%emt 0:
00:00]} 43. Qe4 {[%emt 0:00:00]} Rg8 {[%emt 0:00:00]} 44. h4 {[%emt 0:00:00]}
Rg7 {[%emt 0:00:00]} 45. h5 {[%emt 0:00:00]} Kg8 {[%emt 0:00:00]} 46. hxg6 {
[%emt 0:00:00]} Re7 {[%emt 0:04:03]} 47. Kg2 {[%emt 0:00:00]} Kg7 {[%emt 0:02:
24]} 48. Qf5 {[%emt 0:00:00]} Rb3 {[%emt 0:00:56]} 49. Kf3 {[%emt 0:05:06]} Bd4
{[%emt 0:01:20]} 50. g5 {[%emt 0:00:24]} fxg5 {[%emt 0:01:42]} 51. Kg4 {
[%emt 0:00:16]} Rb2 {[%emt 0:01:45]} 52. Qf3 {[%emt 0:00:53]} Bf6 {[%emt 0:01:
28]} 53. Bf5 {[%emt 0:00:30]} Re1 {[%emt 0:02:38]} 54. Qa3 {[%emt 0:00:31]}
Rg1+ {[%emt 0:01:06]} 55. Kf3 {[%emt 0:00:24]} Rf1+ {[%emt 0:00:13]} 56. Ke3 {
[%emt 0:00:34]} Rxf5 {[%emt 0:00:32]} 57. Qxd6 {[%emt 0:00:03]} Kxg6 {[%emt 0:
00:34]} 58. Qd7 {[%emt 0:00:03]} Re5+ {[%emt 0:00:14]} 59. Kd3 {[%emt 0:00:10]}
Re7 {[%emt 0:00:20]} 60. Qc8 {[%emt 0:00:17]} Rb3+ {[%emt 0:00:42]} 61. Kd2 {
[%emt 0:00:03]} Rb2+ {[%emt 0:00:17]} 62. Kd3 {[%emt 0:00:08]} Rb6 {[%emt 0:00:
50]} 63. Qg8+ {[%emt 0:00:40]} Bg7 {[%emt 0:00:15]} 64. Qd8 {[%emt 0:00:20]}
Rf7 {[%emt 0:00:38]} 65. d6 {[%emt 0:00:30]} Rb4 {[%emt 0:00:27]} 66. Ke3 {
[%emt 0:01:21]} Rd4 {[%emt 0:00:22]} 67. Qb8 {[%emt 0:00:03]} Rd5 {[%emt 0:01:
07]} 68. Ke4 {[%emt 0:01:09]} Rd1 {[%emt 0:00:19]} 69. Ke3 {[%emt 0:01:10]} Kh6
{[%emt 0:00:39]} 70. Qb3 {[%emt 0:00:30]} Re1+ {[%emt 0:00:28]} 71. Kd2 {
[%emt 0:00:10]} Ref1 {[%emt 0:00:34]} 72. Qh3+ {[%emt 0:00:31]} Kg6 {[%emt 0:
00:01]} 73. Qd3+ {[%emt 0:00:34]} R1f5 {[%emt 0:00:43]} 74. d7 {[%emt 0:00:12]}
Bf6 {[%emt 0:00:03]} 75. d8=Q {[%emt 0:00:40]} Bxd8 {[%emt 0:00:03]} 76. Qxd8 {
[%emt 0:00:02]} g4 {[%emt 0:00:32]} 77. Qg8+ {[%emt 0:00:25]} Kh5 {[%emt 0:00:
06]} 78. Qh8+ {[%emt 0:01:02]} Kg5 {[%emt 0:00:04]} 79. Qd8+ {[%emt 0:00:12]}
Kf4 {[%emt 0:00:51]} 80. Qd4+ {[%emt 0:00:14]} Kf3 {[%emt 0:00:41]} 81. Qe3+ {
[%emt 0:00:29]} Kg2 {[%emt 0:00:05]} 82. Qe4+ {[%emt 0:00:03]} Kg3 {[%emt 0:00:
21]} 83. Qe3+ {[%emt 0:00:26]} Kh2 {[%emt 0:00:49]} 84. Qh6+ {[%emt 0:00:23]}
Kg2 {[%emt 0:00:11]} 85. Qc6+ {[%emt 0:00:21]} Rf3 {[%emt 0:00:34]} 86. Qe4 {
[%emt 0:00:37]} g3 {[%emt 0:00:41]} 87. Ke2 {[%emt 0:00:36]} Kg1 {[%emt 0:00:
27]} 88. Qd4+ {[%emt 0:00:33]} Rf2+ {[%emt 0:00:32]} 89. Ke1 {[%emt 0:00:14]}
R7f3 {[%emt 0:01:24]} 90. Qxa7 {[%emt 0:01:49]} Ra3 {[%emt 0:00:11]} 91. Qg7 {
[%emt 0:00:05]} Ra1+ {[%emt 0:00:09]} 0-1